bitfinex/quotes_BTCUSD_20250218
["timestamp","ask_amount","ask_price","bid_price","bid_amount"]
[1739860954433,0.01023235,95681.0,95676.0,0.10950365]
[1739860954617,0.01023235,95681.0,95676.0,0.11650365]
[1739860954814,0.01023235,95681.0,95680.0,0.156772]
[1739860955086,0.12098671,95690.0,95680.0,0.17165199]
[1739860955236,0.12098671,95690.0,95681.0,0.10250365]
[1739860955451,0.01024804,95689.0,95681.0,0.10250365]
[1739860955619,0.01024804,95689.0,95681.0,0.18210365]
[1739860955820,0.12098671,95690.0,95687.0,0.15676]
[1739860956021,0.156746,95696.0,95688.0,0.25926165]
[1739860956270,0.12098671,95700.0,95688.0,0.10250365]
[1739860956271,0.01027906,95689.0,95688.0,0.10250365]
[1739860956451,0.14770507,95700.0,95688.0,0.10250365]
[1739860956658,0.12098671,95700.0,95688.0,0.10250365]
[1739860957005,0.01029105,95699.0,95691.0,0.156753]
[1739860957209,0.156755,95691.0,95689.0,0.01508037]
[1739860957412,0.156752,95692.0,95690.0,0.10250365]
[1739860958250,0.00717265,95691.0,95690.0,0.10250365]
[1739860958670,0.00717265,95691.0,95690.0,0.10950365]
[1739860958890,0.00717265,95691.0,95690.0,0.10984325]
[1739860959099,0.00717265,95691.0,95690.0,0.0003396]
[1739860959100,0.15717265,95691.0,95690.0,0.0003396]
[1739860959304,0.15717265,95691.0,95690.0,0.0073396]
[1739860960112,0.15717265,95691.0,95690.0,0.0003396]
[1739860960530,0.15717265,95691.0,95690.0,0.0073396]
[1739860961153,0.15717265,95691.0,95690.0,0.0143396]
[1739860961366,0.15717265,95691.0,95690.0,0.0073396]
[1739860961859,0.15717265,95691.0,95690.0,0.0123396]
[1739860963502,0.00717265,95691.0,95690.0,0.13175361]
[1739860963713,0.00717265,95691.0,95690.0,0.11484325]
[1739860963915,0.156753,95692.0,95690.0,0.11484325]
[1739860964109,0.01026367,95691.0,95690.0,0.11484325]
[1739860964715,0.01026367,95691.0,95690.0,0.10984325]
[1739860965071,0.0084834,95691.0,95690.0,0.10784325]
[1739860965247,0.0084834,95691.0,95690.0,0.12186758]
[1739860965450,0.0084834,95691.0,95690.0,0.13386758]
[1739860965673,0.156753,95692.0,95690.0,0.11484325]
[1739860965875,0.156753,95692.0,95691.0,0.10250365]
[1739860966075,0.15,95697.0,95691.0,0.10250365]
[1739860966076,0.15,95700.0,95691.0,0.10250365]
[1739860966506,0.156737,95702.0,95691.0,0.10250365]
[1739860966709,0.27098671,95701.0,95691.0,0.10250365]
[1739860966952,0.12098671,95701.0,95697.0,0.156743]
[1739860967156,0.02670438,95705.0,95698.0,0.10250365]
[1739860967365,0.156754,95691.0,95690.0,0.0053396]
[1739860967570,0.156754,95691.0,95690.0,0.10784325]
[1739860967784,0.16390688,95691.0,95690.0,0.10784325]
[1739860968201,0.16390688,95691.0,95690.0,0.10284325]
[1739860969055,0.16390688,95691.0,95690.0,0.11484325]
[1739860969652,0.00715288,95691.0,95690.0,0.11484325]
[1739860970073,0.156753,95692.0,95690.0,0.11484325]
[1739860970354,0.00759672,95691.0,95690.0,0.11484325]
[1739860970756,0.00759672,95691.0,95690.0,0.0123396]
[1739860970967,0.15759672,95691.0,95690.0,0.0123396]
[1739860971188,0.15759672,95691.0,95690.0,0.0003396]
[1739860971416,0.15759672,95691.0,95690.0,0.0073396]
[1739860971619,0.15759672,95691.0,95690.0,0.0109396]
[1739860971824,0.63588372,95691.0,95690.0,0.0109396]
[1739860972656,0.63588372,95691.0,95690.0,0.005]
[1739860972860,0.79263772,95691.0,95690.0,0.007]
[1739860973271,0.8815715,95691.0,95690.0,0.007]
[1739860973858,0.4032845,95691.0,95690.0,0.007]
[1739860974074,2.7328505,95691.0,95690.0,0.007]
[1739860974279,0.306779,95676.0,95675.0,0.00013279]
[1739860974699,0.31436589,95676.0,95675.0,0.00013279]
[1739860974913,0.59746489,95676.0,95675.0,0.00013279]
[1739860975350,0.69996854,95676.0,95675.0,0.00013279]
[1739860975572,0.69996854,95676.0,95675.0,0.00613279]
[1739860975780,0.59746489,95676.0,95675.0,0.00913279]
[1739860975996,0.59746489,95676.0,95675.0,0.00313279]
[1739860977278,5.64746489,95676.0,95675.0,0.00313279]
[1739860977496,8.62432989,95676.0,95675.0,0.00613279]
[1739860977697,8.74147689,95676.0,95675.0,0.00613279]
[1739860977904,8.46902954,95676.0,95675.0,0.00013279]
[1739860978123,0.156836,95641.0,95640.0,0.0755]
[1739860978432,0.156836,95641.0,95632.0,0.08363346]
[1739860978433,0.156847,95635.0,95633.0,0.0751]
[1739860978641,0.156847,95635.0,95634.0,0.02039335]
[1739860978814,0.209111,95643.0,95634.0,0.02039335]
[1739860979024,0.209111,95643.0,95635.0,0.10250365]
[1739860979180,0.156843,95637.0,95635.0,0.10250365]
[1739860979795,0.209087,95654.0,95635.0,0.10250365]
[1739860979796,0.12098671,95650.0,95635.0,0.10250365]
[1739860980014,0.156823,95649.0,95638.0,0.15684]
[1739860980217,0.00117333,95648.0,95640.0,0.156837]
[1739860980428,0.12098671,95650.0,95641.0,0.10250365]
[1739860980659,0.0011731,95649.0,95647.0,0.156825]
[1739860980873,0.12098671,95660.0,95642.0,0.08363346]
[1739860980874,0.12098671,95660.0,95648.0,0.18460365]
[1739860981076,0.15681,95657.0,95653.0,0.08363346]
[1739860981482,0.00117032,95656.0,95655.0,0.156813]
[1739860981686,0.00013259,95662.0,95655.0,0.17056836]
[1739860981895,0.00013259,95662.0,95656.0,0.10250365]
[1739860981896,0.156803,95661.0,95656.0,0.10250365]
[1739860982105,0.156809,95658.0,95656.0,0.10250365]
[1739860982323,0.00868139,95661.0,95648.0,0.0821]
[1739860982534,0.156821,95650.0,95649.0,0.10250365]
[1739860982964,0.16431129,95650.0,95649.0,0.10250365]
[1739860983805,0.16431129,95650.0,95640.0,0.1254]
[1739860983806,0.00749029,95650.0,95640.0,0.1254]
[1739860984011,0.156833,95643.0,95640.0,0.1254]
[1739860984227,0.209107,95645.0,95633.0,0.0755]
[1739860984451,0.156841,95638.0,95633.0,0.0755]
[1739860984684,0.15683,95645.0,95636.0,0.156843]
[1739860984895,0.00865987,95637.0,95636.0,0.156843]
[1739860985097,0.12098671,95650.0,95636.0,0.10250365]
[1739860985298,0.156836,95642.0,95637.0,0.10250365]
[1739860985526,0.2091,95648.0,95637.0,0.10250365]
[1739860985721,0.156837,95641.0,95637.0,0.10250365]
[1739860986351,0.12098671,95650.0,95637.0,0.10250365]
[1739860986352,0.156841,95639.0,95637.0,0.10250365]
[1739860987180,0.156841,95639.0,95637.0,0.10850365]
[1739860987658,0.156841,95639.0,95637.0,0.006]
[1739860987870,0.156847,95634.0,95633.0,0.007]
[1739860988043,0.156847,95634.0,95633.0,0.10250365]
[1739860988515,0.209128,95635.0,95625.0,0.0476]
[1739860988716,0.12098671,95635.0,95626.0,0.10250365]
[1739860989333,0.156858,95628.0,95626.0,0.10250365]
[1739860989702,0.209133,95633.0,95626.0,0.10250365]
[1739860990099,0.12098671,95635.0,95626.0,0.10250365]
[1739860990100,0.209135,95632.0,95626.0,0.10250365]
[1739860990309,0.209135,95632.0,95626.0,0.12506802]
[1739860990310,0.156852,95632.0,95626.0,0.12506802]
[1739860990516,0.156853,95631.0,95626.0,0.12551066]
[1739860990916,0.209132,95633.0,95626.0,0.12551066]
[1739860991104,0.156847,95634.0,95633.0,0.006]
[1739860991312,0.32422834,95669.0,95633.0,0.20155472]
[1739860991512,0.12098671,95670.0,95653.0,0.209089]
[1739860991711,0.12098671,95663.0,95654.0,0.10250365]
[1739860991916,0.156806,95660.0,95652.0,0.0799]
[1739860992192,0.156806,95660.0,95653.0,0.13106635]
[1739860992414,0.156814,95655.0,95653.0,0.10250365]
[1739860993515,0.18068188,95663.0,95653.0,0.10250365]
[1739860993710,0.18068188,95670.0,95653.0,0.10250365]
[1739860993912,0.156807,95659.0,95653.0,0.10250365]
[1739860994113,0.209011,95689.0,95653.0,0.10250365]
[1739860994114,0.15678,95676.0,95655.0,0.08363346]
[1739860994353,0.18068188,95680.0,95656.0,0.10250365]
[1739860994691,0.65159,95679.0,95657.0,0.20908]
[1739860994900,0.156794,95667.0,95658.0,0.10250365]
[1739860995314,0.00114579,95666.0,95658.0,0.10250365]
[1739860995518,0.00114579,95666.0,95661.0,0.209071]
[1739860995721,4.42e-05,95667.0,95662.0,0.10250365]
[1739860995951,0.00862519,95665.0,95662.0,0.10250365]
[1739860996966,0.16542219,95665.0,95662.0,0.10250365]
[1739860997813,0.1568,95664.0,95662.0,0.10250365]
[1739860998013,0.00862519,95665.0,95662.0,0.10550365]
[1739860998333,0.00862519,95665.0,95662.0,0.10950365]
[1739860998534,0.156799,95664.0,95662.0,0.007]
[1739860998741,0.156799,95664.0,95662.0,0.003]
[1739860998940,0.11919,95663.0,95662.0,0.008]
[1739860999651,0.00751655,95663.0,95662.0,0.008]
[1739860999819,0.40058855,95663.0,95662.0,0.008]
[1739861000195,0.26109655,95663.0,95662.0,0.008]
[1739861000406,0.00751655,95663.0,95662.0,0.005]
[1739861001012,0.00751655,95663.0,95644.0,0.0794]
[1739861001215,0.15682,95651.0,95645.0,0.10250365]
[1739861001506,0.156798,95664.0,95662.0,0.005]
[1739861001911,0.156816,95654.0,95647.0,0.156826]
[1739861002119,0.2091042,95667.0,95643.0,0.0003398]
[1739861002120,0.209082,95656.0,95643.0,0.0003398]
[1739861002335,0.156831,95644.0,95643.0,0.0003398]
[1739861003166,0.00748695,95644.0,95643.0,0.0003398]
[1739861004208,0.15683,95645.0,95643.0,0.0043398]
[1739861004419,0.00747362,95644.0,95643.0,0.0043398]
[1739861004570,0.00747362,95644.0,95643.0,0.04436958]
[1739861004775,0.24868188,95680.0,95644.0,0.0771]
[1739861004976,0.02604793,95676.0,95650.0,0.08363346]
[1739861005176,0.15,95668.0,95651.0,0.10250365]
[1739861005375,0.15,95668.0,95652.0,0.209091]
[1739861005732,0.156803,95661.0,95653.0,0.10250365]
[1739861005928,0.15,95668.0,95653.0,0.10250365]
[1739861006141,0.209065,95664.0,95653.0,0.10250365]
[1739861006350,0.15,95669.0,95653.0,0.10250365]
[1739861006557,0.156814,95655.0,95653.0,0.10250365]
[1739861006765,0.18068188,95663.0,95650.0,0.08363346]
[1739861007792,0.156816,95653.0,95651.0,0.02092335]
[1739861008214,0.18068188,95663.0,95651.0,0.02092335]
[1739861008417,0.18068188,95663.0,95657.0,0.156809]
[1739861008626,0.156737,95702.0,95663.0,0.0798]
[1739861008838,0.068,95728.0,95665.0,0.0778]
[1739861009043,0.068,95728.0,95694.0,0.156749]
[1739861009044,0.01637461,95702.0,95694.0,0.156749]
[1739861009253,0.156742,95699.0,95693.0,0.0778]
[1739861009482,0.18068188,95710.0,95693.0,0.0778]
[1739861009698,1.84219,95709.0,95675.0,0.0794]
[1739861009915,0.156768,95683.0,95676.0,0.10250365]
[1739861010129,0.156768,95683.0,95675.0,0.0794]
[1739861010130,0.18068188,95690.0,95675.0,0.0794]
[1739861010340,0.156776,95678.0,95675.0,0.10250365]
[1739861010545,0.15,95689.0,95675.0,0.10250365]
[1739861010750,0.15004423,95689.0,95675.0,0.10250365]
[1739861010988,0.15004423,95689.0,95666.0,0.12062606]
[1739861010989,0.243892,95688.0,95666.0,0.12062606]
[1739861011183,0.18068188,95680.0,95667.0,0.11432211]
[1739861011387,0.156786,95672.0,95667.0,0.11432211]
[1739861011587,0.18068188,95680.0,95667.0,0.10250365]
[1739861011790,0.156792,95668.0,95667.0,0.10250365]
[1739861012003,0.156792,95668.0,95662.0,0.08363346]
[1739861012207,0.209051,95671.0,95666.0,0.007]
[1739861012420,0.156786,95672.0,95666.0,0.007]
[1739861012629,0.18068188,95680.0,95666.0,0.02893371]
[1739861012839,0.156792,95668.0,95667.0,0.007]
[1739861013281,0.156786,95672.0,95667.0,0.007]
[1739861013461,0.156787,95671.0,95667.0,0.007]
[1739861013707,0.156789,95670.0,95667.0,0.01]
[1739861013914,0.15679,95669.0,95667.0,0.007]
[1739861014120,0.156798,95664.0,95663.0,0.10250365]
[1739861014348,0.15,95679.0,95667.0,0.007]
[1739861014530,0.18068188,95673.0,95666.0,0.007]
[1739861014752,0.209026,95682.0,95666.0,0.03393371]
[1739861014954,0.12042569,95680.0,95667.0,0.006]
[1739861015112,0.156776,95678.0,95669.0,0.15679]
[1739861015311,0.156776,95678.0,95669.0,0.156789]
[1739861015520,0.156777,95677.0,95667.0,0.007]
[1739861015720,0.156779,95676.0,95669.0,0.15679]
[1739861015919,0.12042569,95680.0,95667.0,0.02401081]
[1739861016125,0.557789,95679.0,95669.0,0.156788]
[1739861016320,0.557789,95679.0,95667.0,0.02401081]
[1739861016525,0.557789,95679.0,95677.0,0.156776]
[1739861016721,0.27718169,95690.0,95682.0,0.156768]
[1739861016922,0.12042569,95690.0,95682.0,0.156768]
[1739861017149,0.156763,95686.0,95679.0,0.0497]
[1739861017356,0.15676,95688.0,95680.0,0.02401081]
[1739861017550,0.32943469,95690.0,95679.0,0.206473]
[1739861017754,0.156763,95686.0,95679.0,0.0497]
[1739861017960,0.539809,95685.0,95679.0,0.0497]
[1739861018310,0.27472834,95699.0,95682.0,0.002]
[1739861018557,0.156744,95698.0,95687.0,0.156759]
[1739861018789,0.27472834,95699.0,95687.0,0.156759]
[1739861019011,0.43147034,95699.0,95687.0,0.156759]
[1739861019228,0.27472834,95699.0,95687.0,0.156759]
[1739861019456,0.12042569,95710.0,95688.0,0.10250365]
[1739861019640,0.12042569,95700.0,95688.0,0.10250365]
[1739861020238,0.156727,95708.0,95688.0,0.10250365]
[1739861020415,0.15673,95706.0,95688.0,0.10250365]
[1739861020802,0.00021443,95689.0,95688.0,0.10250365]
[1739861020999,0.00021443,95689.0,95688.0,0.10450365]
[1739861021204,0.00021443,95689.0,95688.0,0.10250365]
[1739861021401,0.00021443,95689.0,95688.0,0.2350486]
[1739861021649,0.00021443,95689.0,95688.0,0.24000365]
[1739861021998,0.00021443,95689.0,95688.0,0.24700365]
[1739861022445,0.00021443,95689.0,95688.0,0.24000365]
[1739861022878,0.00021443,95689.0,95688.0,0.39676265]
[1739861023078,0.00021443,95689.0,95688.0,0.24700365]
[1739861023297,0.00021443,95689.0,95688.0,0.24100365]
[1739861023721,0.00021443,95689.0,95688.0,0.29794817]
[1739861023926,0.00021443,95689.0,95688.0,0.24100365]
[1739861024331,0.00021443,95689.0,95688.0,0.24800365]
[1739861024568,0.00021443,95689.0,95688.0,0.24100365]
[1739861024782,0.00021443,95689.0,95688.0,0.24800365]
[1739861024995,0.00021443,95689.0,95688.0,0.56461582]
[1739861025201,0.12059549,95740.0,95691.0,0.0776]
[1739861025405,0.12042569,95730.0,95722.0,0.156703]
[1739861025608,0.12042569,95730.0,95722.0,0.25920665]
[1739861025821,0.00636036,95729.0,95723.0,0.02592067]
[1739861026238,0.156695,95728.0,95723.0,0.02592067]
[1739861026452,0.00636036,95729.0,95723.0,0.02592067]
[1739861026669,0.0063584,95727.0,95722.0,0.10250365]
[1739861026875,0.156695,95727.0,95722.0,0.10250365]
[1739861027085,0.00636036,95728.0,95722.0,0.10250365]
[1739861027304,0.00636036,95728.0,95710.0,0.286564]
[1739861027305,0.00635644,95726.0,95710.0,0.286564]
[1739861027515,0.156697,95726.0,95723.0,0.001]
[1739861027714,0.16305348,95725.0,95723.0,0.001]
[1739861027930,0.156703,95722.0,95711.0,0.31146465]
[1739861028135,0.00636626,95724.0,95722.0,0.002]
[1739861028336,0.156701,95724.0,95722.0,0.002]
[1739861028469,0.00636447,95723.0,95722.0,0.002]
[1739861028661,0.17265981,95723.0,95722.0,0.002]
[1739861028911,0.34565981,95723.0,95722.0,0.002]
[1739861029498,0.36202689,95723.0,95722.0,0.007]
[1739861030140,0.31186155,95723.0,95722.0,0.005]
[1739861030720,0.173,95722.0,95688.0,0.0809]
[1739861030915,0.023,95721.0,95689.0,0.10250365]
[1739861031128,0.023,95718.0,95689.0,0.10250365]
[1739861031324,0.173,95716.0,95691.0,0.156753]
[1739861031581,0.156745,95697.0,95692.0,0.10250365]
[1739861031701,0.156742,95699.0,95692.0,0.10250365]
[1739861031901,0.0063321,95696.0,95688.0,0.0809]
[1739861032142,0.156755,95691.0,95689.0,0.123527]
[1739861032350,0.156755,95691.0,95689.0,0.10250365]
[1739861032776,0.19407988,95695.0,95692.0,0.007]
[1739861032976,0.156751,95693.0,95692.0,0.007]
[1739861034150,0.18051122,95702.0,95692.0,0.006]
[1739861034151,0.38949322,95702.0,95692.0,0.006]
[1739861034356,0.18051122,95710.0,95692.0,0.006]
[1739861034701,0.18051122,95702.0,95692.0,0.006]
[1739861034906,0.156751,95693.0,95692.0,0.006]
[1739861035104,0.208993,95697.0,95680.0,0.0771]
[1739861035105,0.156766,95684.0,95680.0,0.0771]
[1739861035308,0.18051122,95690.0,95681.0,0.10250365]
[1739861035461,0.16304395,95683.0,95681.0,0.10250365]
[1739861036631,0.16304395,95683.0,95680.0,0.0771]
[1739861036632,0.156779,95676.0,95675.0,0.0484404]
[1739861036779,0.156774,95679.0,95675.0,0.15098828]
[1739861036964,0.209025,95682.0,95676.0,0.10250365]
[1739861037443,0.156772,95681.0,95676.0,0.10250365]
[1739861037642,0.209022,95684.0,95681.0,0.007]
[1739861037842,0.156767,95683.0,95681.0,0.007]
[1739861038083,0.156767,95683.0,95676.0,0.10250365]
[1739861038294,0.156767,95683.0,95676.0,0.10950365]
[1739861038491,0.209015,95687.0,95676.0,0.11650365]
[1739861038690,0.156764,95685.0,95676.0,0.11650365]
[1739861038898,0.156764,95685.0,95677.0,0.156776]
[1739861039097,0.156764,95685.0,95678.0,0.10250365]
[1739861039324,0.209015,95687.0,95678.0,0.10250365]
[1739861039325,0.209015,95687.0,95678.0,0.25927865]
[1739861039580,0.15676,95688.0,95680.0,0.156772]
[1739861039767,0.156759,95688.0,95681.0,0.006]
[1739861039936,0.18051122,95690.0,95681.0,0.006]
[1739861040136,0.209017,95686.0,95678.0,0.10250365]
[1739861040473,0.20897,95708.0,95683.0,0.08363346]
[1739861040686,0.15,95699.0,95684.0,0.10250365]
[1739861040898,0.15,95699.0,95686.0,0.156761]
[1739861040899,0.208995,95696.0,95686.0,0.156761]
[1739861041040,0.15,95699.0,95687.0,0.121116]
[1739861041240,0.15,95699.0,95692.0,0.156752]
[1739861041441,0.15,95699.0,95692.0,0.10250365]
[1739861041643,0.18051122,95700.0,95677.0,0.007]
[1739861041644,0.15,95697.0,95677.0,0.007]
[1739861041847,0.15,95697.0,95650.0,0.29272646]
[1739861041848,0.18051122,95690.0,95678.0,0.10250365]
[1739861042191,0.18051122,95690.0,95687.0,0.003]
[1739861042391,0.15,95699.0,95687.0,0.003]
[1739861042592,0.15,95697.0,95687.0,0.003]
[1739861042794,0.01949428,95689.0,95682.0,0.156768]
[1739861042997,0.01949428,95689.0,95683.0,0.001]
[1739861043197,0.156762,95686.0,95682.0,0.10250365]
[1739861043350,0.156764,95685.0,95682.0,0.10250365]
[1739861043579,0.156762,95687.0,95682.0,0.10250365]
[1739861043776,0.16560826,95690.0,95678.0,0.007]
[1739861043989,0.156765,95685.0,95679.0,0.10250365]
[1739861044208,0.156765,95685.0,95683.0,0.004]
[1739861044413,0.00627939,95684.0,95679.0,0.10250365]
[1739861044783,0.156764,95685.0,95682.0,0.005]
[1739861044985,0.16560826,95690.0,95683.0,0.02712807]
[1739861045186,0.32236526,95690.0,95682.0,0.005]
[1739861045382,0.32236526,95690.0,95687.0,0.0003404]
[1739861045809,0.156758,95689.0,95687.0,0.0003404]
[1739861047086,0.209004,95692.0,95687.0,0.0073404]
[1739861047306,0.156755,95691.0,95687.0,0.0073404]
[1739861047575,0.156756,95690.0,95687.0,0.0073404]
[1739861047856,0.156751,95693.0,95687.0,0.0073404]
[1739861048204,0.33051122,95697.0,95687.0,0.0043404]
[1739861048205,0.209,95694.0,95687.0,0.0043404]
[1739861048400,0.156753,95692.0,95687.0,0.0003404]
[1739861048610,0.33051122,95697.0,95687.0,0.0063404]
[1739861048816,0.485849,95696.0,95687.0,0.0063404]
[1739861049020,0.156757,95690.0,95687.0,0.0063404]
[1739861049221,0.156757,95690.0,95687.0,0.0003404]
[1739861049449,0.156757,95690.0,95687.0,0.0053404]
[1739861049654,0.209001,95693.0,95687.0,0.0053404]
[1739861049872,0.209001,95693.0,95687.0,0.0003404]
[1739861050095,0.209001,95693.0,95687.0,0.0043404]
[1739861050277,0.209001,95693.0,95687.0,0.0113404]
[1739861050516,0.156756,95690.0,95687.0,0.0113404]
[1739861050697,0.208995,95696.0,95687.0,0.0113404]
[1739861050939,0.156754,95691.0,95687.0,0.0073404]
[1739861051254,0.156754,95691.0,95687.0,0.0103404]
[1739861051490,0.27037604,95697.0,95687.0,0.0103404]
[1739861051491,0.15,95697.0,95688.0,0.17830365]
[1739861051699,0.15,95697.0,95690.0,0.156754]
[1739861051898,0.15,95697.0,95689.0,0.20901]
[1739861052149,0.15,95697.0,95691.0,0.156754]
[1739861053076,0.00533539,95696.0,95691.0,0.156754]
[1739861053290,0.00533539,95696.0,95691.0,0.160754]
[1739861053494,0.156749,95694.0,95691.0,0.004]
[1739861053874,0.0053295,95693.0,95691.0,0.004]
[1739861054077,0.0053295,95693.0,95691.0,0.006]
[1739861054282,0.0053295,95693.0,95691.0,0.004]
[1739861054478,0.15,95697.0,95691.0,0.003]
[1739861054667,0.00533344,95692.0,95691.0,0.159753]
[1739861054871,0.15,95697.0,95691.0,0.005]
[1739861055074,0.00532754,95692.0,95691.0,0.164754]
[1739861055296,0.15,95697.0,95691.0,0.003]
[1739861055678,0.00533539,95696.0,95693.0,0.15675]
[1739861056236,0.00533539,95696.0,95691.0,0.163753]
[1739861056473,0.00533539,95696.0,95693.0,0.156751]
[1739861056678,0.00533539,95696.0,95692.0,0.156752]
[1739861057269,0.00533539,95696.0,95693.0,0.002]
[1739861057689,0.00533539,95696.0,95687.0,0.0003404]
[1739861058193,0.00533539,95696.0,95693.0,0.005]
[1739861058597,0.00533539,95696.0,95689.0,0.20901]
[1739861058598,0.00533539,95696.0,95692.0,0.156752]
[1739861058821,0.00533539,95696.0,95689.0,0.20901]
[1739861059006,0.00533539,95696.0,95695.0,0.156748]
[1739861059337,0.0001702,95699.0,95695.0,0.156748]
[1739861059550,0.0001702,95699.0,95693.0,0.209001]
[1739861059769,0.00534439,95698.0,95697.0,0.156743]
[1739861060903,0.00534439,95698.0,95697.0,0.158743]
[1739861061229,0.00534439,95698.0,95695.0,0.208996]
[1739861061421,0.00534439,95698.0,95697.0,0.002]
[1739861061930,0.00534439,95698.0,95697.0,0.006]
[1739861062326,0.00534439,95698.0,95697.0,0.002]
[1739861062708,0.0001702,95699.0,95697.0,0.007]
[1739861062906,0.16209132,95698.0,95697.0,0.007]
[1739861063232,0.16209132,95698.0,95697.0,0.002]
[1739861063450,0.00534832,95698.0,95697.0,0.005]
[1739861063666,0.00534832,95698.0,95697.0,0.007]
[1739861063903,0.00534832,95698.0,95697.0,0.005]
[1739861064312,0.00534832,95698.0,95697.0,0.007]
[1739861064458,0.00534832,95698.0,95697.0,0.005]
[1739861064659,0.00534832,95698.0,95687.0,0.0003404]
[1739861064918,0.12037604,95697.0,95688.0,0.18074864]
[1739861065129,0.156746,95696.0,95688.0,0.18074864]
[1739861065332,0.16208947,95696.0,95688.0,0.18074864]
[1739861065613,0.16208947,95696.0,95688.0,0.156758]
[1739861065910,0.156748,95695.0,95688.0,0.156758]
[1739861066247,0.00534349,95694.0,95688.0,0.156758]
[1739861066871,0.00534349,95694.0,95687.0,0.0043404]
[1739861067328,0.00534349,95694.0,95688.0,0.003]
[1739861067585,0.00534349,95694.0,95687.0,0.0043404]
[1739861067586,0.15675,95694.0,95687.0,0.0043404]
[1739861067784,0.15675,95694.0,95688.0,0.003]
[1739861067959,0.00534546,95693.0,95688.0,0.005]
[1739861068603,0.00534546,95693.0,95687.0,0.1601004]
[1739861068828,0.00534546,95693.0,95687.0,0.1651004]
[1739861069371,0.00534546,95693.0,95687.0,0.0033404]
[1739861069581,0.00534546,95693.0,95687.0,0.1601004]
[1739861069822,0.00534546,95693.0,95688.0,0.006]
[1739861070256,0.00534546,95693.0,95688.0,0.162759]
[1739861070468,0.12037604,95697.0,95688.0,0.162759]
[1739861070469,0.156747,95696.0,95688.0,0.162759]
[1739861070646,0.1569172,95696.0,95688.0,0.165759]
[1739861070848,0.1569172,95696.0,95688.0,0.159759]
[1739861071063,0.00562323,95695.0,95687.0,0.0003404]
[1739861071259,0.00562323,95695.0,95689.0,0.156757]
[1739861071477,0.0001702,95696.0,95688.0,0.003]
[1739861071681,0.0001702,95696.0,95687.0,0.0063404]
[1739861071682,0.00561736,95694.0,95687.0,0.0003404]
[1739861071889,0.16236732,95695.0,95688.0,0.002]
[1739861072090,0.00561736,95693.0,95687.0,0.0003404]
[1739861072230,0.156757,95689.0,95687.0,0.0003404]
[1739861072434,0.156756,95690.0,95689.0,0.003]
[1739861073417,0.890026,95690.0,95689.0,0.003]
[1739861073649,1.788214,95690.0,95688.0,0.005]
[1739861073850,1.578399,95689.0,95688.0,0.005]
[1739861074134,1.52781,95689.0,95688.0,0.008]
[1739861074308,1.463578,95689.0,95688.0,0.005]
[1739861074517,1.347801,95689.0,95687.0,0.0003404]
[1739861074722,0.156757,95690.0,95687.0,0.0003404]
[1739861074928,0.156758,95689.0,95687.0,0.0063404]
[1739861075240,0.00561738,95689.0,95687.0,0.0063404]
[1739861075494,0.16237438,95689.0,95687.0,0.0003404]
[1739861075641,0.16237438,95689.0,95687.0,0.0113404]
[1739861078656,0.209003,95692.0,95687.0,0.0113404]
[1739861078862,0.00469491,95688.0,95687.0,0.0113404]
[1739861079389,0.00469491,95688.0,95687.0,0.0043404]
[1739861079968,0.00469491,95688.0,95687.0,0.0003404]
[1739861080168,0.00469491,95688.0,95687.0,0.0053404]
[1739861080809,0.00469491,95688.0,95687.0,0.0113404]
[1739861081224,0.00469491,95688.0,95687.0,0.0053404]
[1739861081655,0.00469491,95688.0,95687.0,0.0123404]
[1739861088721,0.16145391,95688.0,95687.0,0.0123404]
[1739861093036,0.16145391,95688.0,95687.0,0.0073404]
[1739861093408,0.16145391,95688.0,95687.0,0.0033404]
[1739861093608,0.16145391,95688.0,95687.0,0.0003404]
[1739861093822,0.16145391,95688.0,95687.0,0.0053404]
[1739861094023,0.16145391,95688.0,95687.0,0.0083404]
[1739861094232,0.16145391,95688.0,95687.0,0.0033404]
[1739861094439,0.16145391,95688.0,95687.0,0.0083404]
[1739861094952,0.16145391,95688.0,95687.0,0.0033404]
[1739861095334,0.16145391,95688.0,95687.0,0.0083404]
[1739861095531,0.156759,95688.0,95687.0,0.0083404]
[1739861096142,0.156759,95688.0,95687.0,0.0053404]
[1739861096477,0.156759,95688.0,95687.0,0.0083404]
[1739861101555,0.18867379,95688.0,95687.0,0.0083404]
[1739861102030,0.179759,95688.0,95687.0,0.0083404]
[1739861102259,2.505997,95688.0,95687.0,0.0083404]
[1739861102505,2.505997,95688.0,95687.0,0.0053404]
[1739861102961,2.505997,95688.0,95687.0,0.0083404]
[1739861103165,2.505997,95688.0,95687.0,0.0003404]
[1739861103367,2.44531703,95688.0,95687.0,0.0013404]
[1739861103603,1.97234303,95688.0,95687.0,0.0063404]
[1739861103828,1.488878,95688.0,95687.0,0.0063404]
[1739861104005,1.488878,95688.0,95687.0,0.0013404]
[1739861104254,1.488878,95688.0,95687.0,0.0053404]
[1739861104432,1.50845314,95688.0,95687.0,0.0053404]
[1739861105084,1.61095679,95688.0,95687.0,0.0053404]
[1739861105288,1.50845314,95688.0,95687.0,0.0053404]
[1739861105726,1.53859551,95688.0,95687.0,0.0053404]
[1739861105927,1.61095679,95688.0,95687.0,0.0053404]
[1739861106135,1.64109682,95688.0,95687.0,0.0043404]
[1739861106286,1.61095679,95688.0,95687.0,0.0043404]
[1739861106489,1.71346044,95688.0,95687.0,0.0013404]
[1739861106716,1.71346044,95688.0,95687.0,0.0043404]
[1739861107171,1.59138165,95688.0,95687.0,0.0043404]
[1739861107324,1.59138165,95688.0,95687.0,0.0003404]
[1739861107522,1.59138165,95688.0,95687.0,0.0023404]
[1739861107950,0.193,95687.0,95675.0,0.00038463]
[1739861108134,0.179779,95676.0,95675.0,0.00038463]
[1739861108334,2.343921,95676.0,95675.0,0.00038463]
[1739861108718,0.156808,95658.0,95657.0,0.12388463]
[1739861108902,0.156808,95658.0,95657.0,0.12392883]
[1739861109133,0.156807,95659.0,95657.0,0.12392883]
[1739861109337,0.12043636,95670.0,95657.0,0.12392883]
[1739861109338,0.023,95669.0,95657.0,0.12392883]
[1739861109543,0.01637742,95676.0,95659.0,0.08363346]
[1739861109750,0.156794,95667.0,95660.0,0.0818]
[1739861109992,0.156796,95666.0,95660.0,0.0818]